{"text_format":"1","workbook":"xlsx","n_sheets":4,"sheets":["集計","年代別","比較","解説"],"not_rendered":{"charts":14,"images":1,"macros":1,"external_links":0,"defined_names":2,"comments":0,"pivot_tables":0},"unopened":[],"bounds":{"document_bytes":16777216,"sheet_cells":100000,"rows_first":2000,"rows_last":500,"rows_between":2000,"halvings":0,"cell_chars":16384,"cell_head_chars":4096},"cells_cut":0,"cells_raw":0,"read":"whole","date_system":"1900"}

{"sheet":"集計","index":0,"n_rows":1000,"n_cols":13,"rows_kept":1000,"cut":false,"hidden":false,"merged":[]}
["名前","年齢","Ⅰ①歩行能力・筋力","Ⅰ②敏捷性","Ⅰ③動的バランス","Ⅰ④静的バランス（閉眼）","Ⅰ⑤静的バランス（開眼）","Ⅱ①歩行能力・筋力","Ⅱ②敏捷性","Ⅱ③動的バランス","Ⅱ④静的バランス（閉眼）","Ⅱ⑤静的バランス（開眼）","年代"]
[null,null,null,null,null,null,null,null,null,null,null,null,{"$f":"ROUNDDOWN(B2,-1)","v":0}]
[null,null,null,null,null,null,null,null,null,null,null,null,0]
[null,null,null,null,null,null,null,null,null,null,null,null,0]
[null,null,null,null,null,null,null,null,null,null,null,null,0]
[null,null,null,null,null,null,null,null,null,null,null,null,0]
[null,null,null,null,null,null,null,null,null,null,null,null,0]
[null,null,null,null,null,null,null,null,null,null,null,null,{"$f":"ROUNDDOWN(B8,-1)","v":0}]
[null,null,null,null,null,null,null,null,null,null,null,null,0]
[null,null,null,null,null,null,null,null,null,null,null,null,0]
[null,null,null,null,null,null,null,null,null,null,null,null,0]
[null,null,null,null,null,null,null,null,null,null,null,null,0]
[null,null,null,null,null,null,null,null,null,null,null,null,0]
[null,null,null,null,null,null,null,null,null,null,null,null,0]
[null,null,null,null,null,null,null,null,null,null,null,null,0]
[null,null,null,null,null,null,null,null,null,null,null,null,0]
[null,null,null,null,null,null,null,null,null,null,null,null,0]
[null,null,null,null,null,null,null,null,null,null,null,null,0]
[null,null,null,null,null,null,null,null,null,null,null,null,0]
[null,null,null,null,null,null,null,null,null,null,null,null,0]
[null,null,null,null,null,null,null,null,null,null,null,null,0]
[null,null,null,null,null,null,null,null,null,null,null,null,0]
[null,null,null,null,null,null,null,null,null,null,null,null,0]
[null,null,null,null,null,null,null,null,null,null,null,null,0]
[null,null,null,null,null,null,null,null,null,null,null,null,0]
[null,null,null,null,null,null,null,null,null,null,null,null,0]
[null,null,null,null,null,null,null,null,null,null,null,null,0]
[null,null,null,null,null,null,null,null,null,null,null,null,0]
[null,null,null,null,null,null,null,null,null,null,null,null,0]
[null,null,null,null,null,null,null,null,null,null,null,null,0]
[null,null,null,null,null,null,null,null,null,null,null,null,0]
[null,null,null,null,null,null,null,null,null,null,null,null,0]
[null,null,null,null,null,null,null,null,null,null,null,null,0]
[null,null,null,null,null,null,null,null,null,null,null,null,0]
[null,null,null,null,null,null,null,null,null,null,null,null,0]
[null,null,null,null,null,null,null,null,null,null,null,null,0]
[null,null,null,null,null,null,null,null,null,null,null,null,0]
[null,null,null,null,null,null,null,null,null,null,null,null,0]
[null,null,null,null,null,null,null,null,null,null,null,null,0]
[null,null,null,null,null,null,null,null,null,null,null,null,0]
[null,null,null,null,null,null,null,null,null,null,null,null,0]
[null,null,null,null,null,null,null,null,null,null,null,null,0]
[null,null,null,null,null,null,null,null,null,null,null,null,0]
[null,null,null,null,null,null,null,null,null,null,null,null,0]
[null,null,null,null,null,null,null,null,null,null,null,null,0]
[null,null,null,null,null,null,null,null,null,null,null,null,0]
[null,null,null,null,null,null,null,null,null,null,null,null,0]
[null,null,null,null,null,null,null,null,null,null,null,null,0]
[null,null,null,null,null,null,null,null,null,null,null,null,0]
[null,null,null,null,null,null,null,null,null,null,null,null,0]
[null,null,null,null,null,null,null,null,null,null,null,null,0]
[null,null,null,null,null,null,null,null,null,null,null,null,0]
[null,null,null,null,null,null,null,null,null,null,null,null,0]
[null,null,null,null,null,null,null,null,null,null,null,null,0]
[null,null,null,null,null,null,null,null,null,null,null,null,0]
[null,null,null,null,null,null,null,null,null,null,null,null,0]
[null,null,null,null,null,null,null,null,null,null,null,null,0]
[null,null,null,null,null,null,null,null,null,null,null,null,0]
[null,null,null,null,null,null,null,null,null,null,null,null,0]
[null,null,null,null,null,null,null,null,null,null,null,null,0]
[null,null,null,null,null,null,null,null,null,null,null,null,0]
[null,null,null,null,null,null,null,null,null,null,null,null,0]
[null,null,null,null,null,null,null,null,null,null,null,null,0]
[null,null,null,null,null,null,null,null,null,null,null,null,0]
[null,null,null,null,null,null,null,null,null,null,null,null,0]
[null,null,null,null,null,null,null,null,null,null,null,null,0]
[null,null,null,null,null,null,null,null,null,null,null,null,{"$f":"ROUNDDOWN(B67,-1)","v":0}]
[null,null,null,null,null,null,null,null,null,null,null,null,0]
[null,null,null,null,null,null,null,null,null,null,null,null,0]
[null,null,null,null,null,null,null,null,null,null,null,null,0]
[null,null,null,null,null,null,null,null,null,null,null,null,0]
[null,null,null,null,null,null,null,null,null,null,null,null,0]
[null,null,null,null,null,null,null,null,null,null,null,null,0]
[null,null,null,null,null,null,null,null,null,null,null,null,0]
[null,null,null,null,null,null,null,null,null,null,null,null,0]
[null,null,null,null,null,null,null,null,null,null,null,null,0]
[null,null,null,null,null,null,null,null,null,null,null,null,0]
[null,null,null,null,null,null,null,null,null,null,null,null,0]
[null,null,null,null,null,null,null,null,null,null,null,null,0]
[null,null,null,null,null,null,null,null,null,null,null,null,0]
[null,null,null,null,null,null,null,null,null,null,null,null,0]
[null,null,null,null,null,null,null,null,null,null,null,null,0]
[null,null,null,null,null,null,null,null,null,null,null,null,0]
[null,null,null,null,null,null,null,null,null,null,null,null,0]
[null,null,null,null,null,null,null,null,null,null,null,null,0]
[null,null,null,null,null,null,null,null,null,null,null,null,0]
[null,null,null,null,null,null,null,null,null,null,null,null,0]
[null,null,null,null,null,null,null,null,null,null,null,null,0]
[null,null,null,null,null,null,null,null,null,null,null,null,0]
[null,null,null,null,null,null,null,null,null,null,null,null,0]
[null,null,null,null,null,null,null,null,null,null,null,null,0]
[null,null,null,null,null,null,null,null,null,null,null,null,0]
[null,null,null,null,null,null,null,null,null,null,null,null,0]
[null,null,null,null,null,null,null,null,null,null,null,null,0]
[null,null,null,null,null,null,null,null,null,null,null,null,0]
[null,null,null,null,null,null,null,null,null,null,null,null,0]
[null,null,null,null,null,null,null,null,null,null,null,null,0]
[null,null,null,null,null,null,null,null,null,null,null,null,0]
[null,null,null,null,null,null,null,null,null,null,null,null,0]
[null,null,null,null,null,null,null,null,null,null,null,null,0]
[null,null,null,null,null,null,null,null,null,null,null,null,0]
[null,null,null,null,null,null,null,null,null,null,null,null,0]
[null,null,null,null,null,null,null,null,null,null,null,null,0]
[null,null,null,null,null,null,null,null,null,null,null,null,0]
[null,null,null,null,null,null,null,null,null,null,null,null,0]
[null,null,null,null,null,null,null,null,null,null,null,null,0]
[null,null,null,null,null,null,null,null,null,null,null,null,0]
[null,null,null,null,null,null,null,null,null,null,null,null,0]
[null,null,null,null,null,null,null,null,null,null,null,null,0]
[null,null,null,null,null,null,null,null,null,null,null,null,0]
[null,null,null,null,null,null,null,null,null,null,null,null,0]
[null,null,null,null,null,null,null,null,null,null,null,null,0]
[null,null,null,null,null,null,null,null,null,null,null,null,0]
[null,null,null,null,null,null,null,null,null,null,null,null,0]
[null,null,null,null,null,null,null,null,null,null,null,null,0]
[null,null,null,null,null,null,null,null,null,null,null,null,0]
[null,null,null,null,null,null,null,null,null,null,null,null,0]
[null,null,null,null,null,null,null,null,null,null,null,null,0]
[null,null,null,null,null,null,null,null,null,null,null,null,0]
[null,null,null,null,null,null,null,null,null,null,null,null,0]
[null,null,null,null,null,null,null,null,null,null,null,null,0]
[null,null,null,null,null,null,null,null,null,null,null,null,0]
[null,null,null,null,null,null,null,null,null,null,null,null,0]
[null,null,null,null,null,null,null,null,null,null,null,null,0]
[null,null,null,null,null,null,null,null,null,null,null,null,0]
[null,null,null,null,null,null,null,null,null,null,null,null,0]
[null,null,null,null,null,null,null,null,null,null,null,null,0]
[null,null,null,null,null,null,null,null,null,null,null,null,0]
[null,null,null,null,null,null,null,null,null,null,null,null,0]
[null,null,null,null,null,null,null,null,null,null,null,null,0]
[null,null,null,null,null,null,null,null,null,null,null,null,{"$f":"ROUNDDOWN(B131,-1)","v":0}]
[null,null,null,null,null,null,null,null,null,null,null,null,0]
[null,null,null,null,null,null,null,null,null,null,null,null,0]
[null,null,null,null,null,null,null,null,null,null,null,null,0]
[null,null,null,null,null,null,null,null,null,null,null,null,0]
[null,null,null,null,null,null,null,null,null,null,null,null,0]
[null,null,null,null,null,null,null,null,null,null,null,null,0]
[null,null,null,null,null,null,null,null,null,null,null,null,0]
[null,null,null,null,null,null,null,null,null,null,null,null,0]
[null,null,null,null,null,null,null,null,null,null,null,null,0]
[null,null,null,null,null,null,null,null,null,null,null,null,0]
[null,null,null,null,null,null,null,null,null,null,null,null,0]
[null,null,null,null,null,null,null,null,null,null,null,null,0]
[null,null,null,null,null,null,null,null,null,null,null,null,0]
[null,null,null,null,null,null,null,null,null,null,null,null,0]
[null,null,null,null,null,null,null,null,null,null,null,null,0]
[null,null,null,null,null,null,null,null,null,null,null,null,0]
[null,null,null,null,null,null,null,null,null,null,null,null,0]
[null,null,null,null,null,null,null,null,null,null,null,null,0]
[null,null,null,null,null,null,null,null,null,null,null,null,0]
[null,null,null,null,null,null,null,null,null,null,null,null,0]
[null,null,null,null,null,null,null,null,null,null,null,null,0]
[null,null,null,null,null,null,null,null,null,null,null,null,0]
[null,null,null,null,null,null,null,null,null,null,null,null,0]
[null,null,null,null,null,null,null,null,null,null,null,null,0]
[null,null,null,null,null,null,null,null,null,null,null,null,0]
[null,null,null,null,null,null,null,null,null,null,null,null,0]
[null,null,null,null,null,null,null,null,null,null,null,null,0]
[null,null,null,null,null,null,null,null,null,null,null,null,0]
[null,null,null,null,null,null,null,null,null,null,null,null,0]
[null,null,null,null,null,null,null,null,null,null,null,null,0]
[null,null,null,null,null,null,null,null,null,null,null,null,0]
[null,null,null,null,null,null,null,null,null,null,null,null,0]
[null,null,null,null,null,null,null,null,null,null,null,null,0]
[null,null,null,null,null,null,null,null,null,null,null,null,0]
[null,null,null,null,null,null,null,null,null,null,null,null,0]
[null,null,null,null,null,null,null,null,null,null,null,null,0]
[null,null,null,null,null,null,null,null,null,null,null,null,0]
[null,null,null,null,null,null,null,null,null,null,null,null,0]
[null,null,null,null,null,null,null,null,null,null,null,null,0]
[null,null,null,null,null,null,null,null,null,null,null,null,0]
[null,null,null,null,null,null,null,null,null,null,null,null,0]
[null,null,null,null,null,null,null,null,null,null,null,null,0]
[null,null,null,null,null,null,null,null,null,null,null,null,0]
[null,null,null,null,null,null,null,null,null,null,null,null,0]
[null,null,null,null,null,null,null,null,null,null,null,null,0]
[null,null,null,null,null,null,null,null,null,null,null,null,0]
[null,null,null,null,null,null,null,null,null,null,null,null,0]
[null,null,null,null,null,null,null,null,null,null,null,null,0]
[null,null,null,null,null,null,null,null,null,null,null,null,0]
[null,null,null,null,null,null,null,null,null,null,null,null,0]
[null,null,null,null,null,null,null,null,null,null,null,null,0]
[null,null,null,null,null,null,null,null,null,null,null,null,0]
[null,null,null,null,null,null,null,null,null,null,null,null,0]
[null,null,null,null,null,null,null,null,null,null,null,null,0]
[null,null,null,null,null,null,null,null,null,null,null,null,0]
[null,null,null,null,null,null,null,null,null,null,null,null,0]
[null,null,null,null,null,null,null,null,null,null,null,null,0]
[null,null,null,null,null,null,null,null,null,null,null,null,0]
[null,null,null,null,null,null,null,null,null,null,null,null,0]
[null,null,null,null,null,null,null,null,null,null,null,null,0]
[null,null,null,null,null,null,null,null,null,null,null,null,0]
[null,null,null,null,null,null,null,null,null,null,null,null,0]
[null,null,null,null,null,null,null,null,null,null,null,null,0]
[null,null,null,null,null,null,null,null,null,null,null,null,{"$f":"ROUNDDOWN(B195,-1)","v":0}]
[null,null,null,null,null,null,null,null,null,null,null,null,0]
[null,null,null,null,null,null,null,null,null,null,null,null,0]
[null,null,null,null,null,null,null,null,null,null,null,null,0]
[null,null,null,null,null,null,null,null,null,null,null,null,0]
[null,null,null,null,null,null,null,null,null,null,null,null,0]
[null,null,null,null,null,null,null,null,null,null,null,null,0]
[null,null,null,null,null,null,null,null,null,null,null,null,0]
[null,null,null,null,null,null,null,null,null,null,null,null,0]
[null,null,null,null,null,null,null,null,null,null,null,null,0]
[null,null,null,null,null,null,null,null,null,null,null,null,0]
[null,null,null,null,null,null,null,null,null,null,null,null,0]
[null,null,null,null,null,null,null,null,null,null,null,null,0]
[null,null,null,null,null,null,null,null,null,null,null,null,0]
[null,null,null,null,null,null,null,null,null,null,null,null,0]
[null,null,null,null,null,null,null,null,null,null,null,null,0]
[null,null,null,null,null,null,null,null,null,null,null,null,0]
[null,null,null,null,null,null,null,null,null,null,null,null,0]
[null,null,null,null,null,null,null,null,null,null,null,null,0]
[null,null,null,null,null,null,null,null,null,null,null,null,0]
[null,null,null,null,null,null,null,null,null,null,null,null,0]
[null,null,null,null,null,null,null,null,null,null,null,null,0]
[null,null,null,null,null,null,null,null,null,null,null,null,0]
[null,null,null,null,null,null,null,null,null,null,null,null,0]
[null,null,null,null,null,null,null,null,null,null,null,null,0]
[null,null,null,null,null,null,null,null,null,null,null,null,0]
[null,null,null,null,null,null,null,null,null,null,null,null,0]
[null,null,null,null,null,null,null,null,null,null,null,null,0]
[null,null,null,null,null,null,null,null,null,null,null,null,0]
[null,null,null,null,null,null,null,null,null,null,null,null,0]
[null,null,null,null,null,null,null,null,null,null,null,null,0]
[null,null,null,null,null,null,null,null,null,null,null,null,0]
[null,null,null,null,null,null,null,null,null,null,null,null,0]
[null,null,null,null,null,null,null,null,null,null,null,null,0]
[null,null,null,null,null,null,null,null,null,null,null,null,0]
[null,null,null,null,null,null,null,null,null,null,null,null,0]
[null,null,null,null,null,null,null,null,null,null,null,null,0]
[null,null,null,null,null,null,null,null,null,null,null,null,0]
[null,null,null,null,null,null,null,null,null,null,null,null,0]
[null,null,null,null,null,null,null,null,null,null,null,null,0]
[null,null,null,null,null,null,null,null,null,null,null,null,0]
[null,null,null,null,null,null,null,null,null,null,null,null,0]
[null,null,null,null,null,null,null,null,null,null,null,null,0]
[null,null,null,null,null,null,null,null,null,null,null,null,0]
[null,null,null,null,null,null,null,null,null,null,null,null,0]
[null,null,null,null,null,null,null,null,null,null,null,null,0]
[null,null,null,null,null,null,null,null,null,null,null,null,0]
[null,null,null,null,null,null,null,null,null,null,null,null,0]
[null,null,null,null,null,null,null,null,null,null,null,null,0]
[null,null,null,null,null,null,null,null,null,null,null,null,0]
[null,null,null,null,null,null,null,null,null,null,null,null,0]
[null,null,null,null,null,null,null,null,null,null,null,null,0]
[null,null,null,null,null,null,null,null,null,null,null,null,0]
[null,null,null,null,null,null,null,null,null,null,null,null,0]
[null,null,null,null,null,null,null,null,null,null,null,null,0]
[null,null,null,null,null,null,null,null,null,null,null,null,0]
[null,null,null,null,null,null,null,null,null,null,null,null,0]
[null,null,null,null,null,null,null,null,null,null,null,null,0]
[null,null,null,null,null,null,null,null,null,null,null,null,0]
[null,null,null,null,null,null,null,null,null,null,null,null,0]
[null,null,null,null,null,null,null,null,null,null,null,null,0]
[null,null,null,null,null,null,null,null,null,null,null,null,0]
[null,null,null,null,null,null,null,null,null,null,null,null,0]
[null,null,null,null,null,null,null,null,null,null,null,null,0]
[null,null,null,null,null,null,null,null,null,null,null,null,{"$f":"ROUNDDOWN(B259,-1)","v":0}]
[null,null,null,null,null,null,null,null,null,null,null,null,0]
[null,null,null,null,null,null,null,null,null,null,null,null,0]
[null,null,null,null,null,null,null,null,null,null,null,null,0]
[null,null,null,null,null,null,null,null,null,null,null,null,0]
[null,null,null,null,null,null,null,null,null,null,null,null,0]
[null,null,null,null,null,null,null,null,null,null,null,null,0]
[null,null,null,null,null,null,null,null,null,null,null,null,0]
[null,null,null,null,null,null,null,null,null,null,null,null,0]
[null,null,null,null,null,null,null,null,null,null,null,null,0]
[null,null,null,null,null,null,null,null,null,null,null,null,0]
[null,null,null,null,null,null,null,null,null,null,null,null,0]
[null,null,null,null,null,null,null,null,null,null,null,null,0]
[null,null,null,null,null,null,null,null,null,null,null,null,0]
[null,null,null,null,null,null,null,null,null,null,null,null,0]
[null,null,null,null,null,null,null,null,null,null,null,null,0]
[null,null,null,null,null,null,null,null,null,null,null,null,0]
[null,null,null,null,null,null,null,null,null,null,null,null,0]
[null,null,null,null,null,null,null,null,null,null,null,null,0]
[null,null,null,null,null,null,null,null,null,null,null,null,0]
[null,null,null,null,null,null,null,null,null,null,null,null,0]
[null,null,null,null,null,null,null,null,null,null,null,null,0]
[null,null,null,null,null,null,null,null,null,null,null,null,0]
[null,null,null,null,null,null,null,null,null,null,null,null,0]
[null,null,null,null,null,null,null,null,null,null,null,null,0]
[null,null,null,null,null,null,null,null,null,null,null,null,0]
[null,null,null,null,null,null,null,null,null,null,null,null,0]
[null,null,null,null,null,null,null,null,null,null,null,null,0]
[null,null,null,null,null,null,null,null,null,null,null,null,0]
[null,null,null,null,null,null,null,null,null,null,null,null,0]
[null,null,null,null,null,null,null,null,null,null,null,null,0]
[null,null,null,null,null,null,null,null,null,null,null,null,0]
[null,null,null,null,null,null,null,null,null,null,null,null,0]
[null,null,null,null,null,null,null,null,null,null,null,null,0]
[null,null,null,null,null,null,null,null,null,null,null,null,0]
[null,null,null,null,null,null,null,null,null,null,null,null,0]
[null,null,null,null,null,null,null,null,null,null,null,null,0]
[null,null,null,null,null,null,null,null,null,null,null,null,0]
[null,null,null,null,null,null,null,null,null,null,null,null,0]
[null,null,null,null,null,null,null,null,null,null,null,null,0]
[null,null,null,null,null,null,null,null,null,null,null,null,0]
[null,null,null,null,null,null,null,null,null,null,null,null,0]
[null,null,null,null,null,null,null,null,null,null,null,null,0]
[null,null,null,null,null,null,null,null,null,null,null,null,0]
[null,null,null,null,null,null,null,null,null,null,null,null,0]
[null,null,null,null,null,null,null,null,null,null,null,null,0]
[null,null,null,null,null,null,null,null,null,null,null,null,0]
[null,null,null,null,null,null,null,null,null,null,null,null,0]
[null,null,null,null,null,null,null,null,null,null,null,null,0]
[null,null,null,null,null,null,null,null,null,null,null,null,0]
[null,null,null,null,null,null,null,null,null,null,null,null,0]
[null,null,null,null,null,null,null,null,null,null,null,null,0]
[null,null,null,null,null,null,null,null,null,null,null,null,0]
[null,null,null,null,null,null,null,null,null,null,null,null,0]
[null,null,null,null,null,null,null,null,null,null,null,null,0]
[null,null,null,null,null,null,null,null,null,null,null,null,0]
[null,null,null,null,null,null,null,null,null,null,null,null,0]
[null,null,null,null,null,null,null,null,null,null,null,null,0]
[null,null,null,null,null,null,null,null,null,null,null,null,0]
[null,null,null,null,null,null,null,null,null,null,null,null,0]
[null,null,null,null,null,null,null,null,null,null,null,null,0]
[null,null,null,null,null,null,null,null,null,null,null,null,0]
[null,null,null,null,null,null,null,null,null,null,null,null,0]
[null,null,null,null,null,null,null,null,null,null,null,null,0]
[null,null,null,null,null,null,null,null,null,null,null,null,{"$f":"ROUNDDOWN(B323,-1)","v":0}]
[null,null,null,null,null,null,null,null,null,null,null,null,0]
[null,null,null,null,null,null,null,null,null,null,null,null,0]
[null,null,null,null,null,null,null,null,null,null,null,null,0]
[null,null,null,null,null,null,null,null,null,null,null,null,0]
[null,null,null,null,null,null,null,null,null,null,null,null,0]
[null,null,null,null,null,null,null,null,null,null,null,null,0]
[null,null,null,null,null,null,null,null,null,null,null,null,0]
[null,null,null,null,null,null,null,null,null,null,null,null,0]
[null,null,null,null,null,null,null,null,null,null,null,null,0]
[null,null,null,null,null,null,null,null,null,null,null,null,0]
[null,null,null,null,null,null,null,null,null,null,null,null,0]
[null,null,null,null,null,null,null,null,null,null,null,null,0]
[null,null,null,null,null,null,null,null,null,null,null,null,0]
[null,null,null,null,null,null,null,null,null,null,null,null,0]
[null,null,null,null,null,null,null,null,null,null,null,null,0]
[null,null,null,null,null,null,null,null,null,null,null,null,0]
[null,null,null,null,null,null,null,null,null,null,null,null,0]
[null,null,null,null,null,null,null,null,null,null,null,null,0]
[null,null,null,null,null,null,null,null,null,null,null,null,0]
[null,null,null,null,null,null,null,null,null,null,null,null,0]
[null,null,null,null,null,null,null,null,null,null,null,null,0]
[null,null,null,null,null,null,null,null,null,null,null,null,0]
[null,null,null,null,null,null,null,null,null,null,null,null,0]
[null,null,null,null,null,null,null,null,null,null,null,null,0]
[null,null,null,null,null,null,null,null,null,null,null,null,0]
[null,null,null,null,null,null,null,null,null,null,null,null,0]
[null,null,null,null,null,null,null,null,null,null,null,null,0]
[null,null,null,null,null,null,null,null,null,null,null,null,0]
[null,null,null,null,null,null,null,null,null,null,null,null,0]
[null,null,null,null,null,null,null,null,null,null,null,null,0]
[null,null,null,null,null,null,null,null,null,null,null,null,0]
[null,null,null,null,null,null,null,null,null,null,null,null,0]
[null,null,null,null,null,null,null,null,null,null,null,null,0]
[null,null,null,null,null,null,null,null,null,null,null,null,0]
[null,null,null,null,null,null,null,null,null,null,null,null,0]
[null,null,null,null,null,null,null,null,null,null,null,null,0]
[null,null,null,null,null,null,null,null,null,null,null,null,0]
[null,null,null,null,null,null,null,null,null,null,null,null,0]
[null,null,null,null,null,null,null,null,null,null,null,null,0]
[null,null,null,null,null,null,null,null,null,null,null,null,0]
[null,null,null,null,null,null,null,null,null,null,null,null,0]
[null,null,null,null,null,null,null,null,null,null,null,null,0]
[null,null,null,null,null,null,null,null,null,null,null,null,0]
[null,null,null,null,null,null,null,null,null,null,null,null,0]
[null,null,null,null,null,null,null,null,null,null,null,null,0]
[null,null,null,null,null,null,null,null,null,null,null,null,0]
[null,null,null,null,null,null,null,null,null,null,null,null,0]
[null,null,null,null,null,null,null,null,null,null,null,null,0]
[null,null,null,null,null,null,null,null,null,null,null,null,0]
[null,null,null,null,null,null,null,null,null,null,null,null,0]
[null,null,null,null,null,null,null,null,null,null,null,null,0]
[null,null,null,null,null,null,null,null,null,null,null,null,0]
[null,null,null,null,null,null,null,null,null,null,null,null,0]
[null,null,null,null,null,null,null,null,null,null,null,null,0]
[null,null,null,null,null,null,null,null,null,null,null,null,0]
[null,null,null,null,null,null,null,null,null,null,null,null,0]
[null,null,null,null,null,null,null,null,null,null,null,null,0]
[null,null,null,null,null,null,null,null,null,null,null,null,0]
[null,null,null,null,null,null,null,null,null,null,null,null,0]
[null,null,null,null,null,null,null,null,null,null,null,null,0]
[null,null,null,null,null,null,null,null,null,null,null,null,0]
[null,null,null,null,null,null,null,null,null,null,null,null,0]
[null,null,null,null,null,null,null,null,null,null,null,null,0]
[null,null,null,null,null,null,null,null,null,null,null,null,{"$f":"ROUNDDOWN(B387,-1)","v":0}]
[null,null,null,null,null,null,null,null,null,null,null,null,0]
[null,null,null,null,null,null,null,null,null,null,null,null,0]
[null,null,null,null,null,null,null,null,null,null,null,null,0]
[null,null,null,null,null,null,null,null,null,null,null,null,0]
[null,null,null,null,null,null,null,null,null,null,null,null,0]
[null,null,null,null,null,null,null,null,null,null,null,null,0]
[null,null,null,null,null,null,null,null,null,null,null,null,0]
[null,null,null,null,null,null,null,null,null,null,null,null,0]
[null,null,null,null,null,null,null,null,null,null,null,null,0]
[null,null,null,null,null,null,null,null,null,null,null,null,0]
[null,null,null,null,null,null,null,null,null,null,null,null,0]
[null,null,null,null,null,null,null,null,null,null,null,null,0]
[null,null,null,null,null,null,null,null,null,null,null,null,0]
[null,null,null,null,null,null,null,null,null,null,null,null,0]
[null,null,null,null,null,null,null,null,null,null,null,null,0]
[null,null,null,null,null,null,null,null,null,null,null,null,0]
[null,null,null,null,null,null,null,null,null,null,null,null,0]
[null,null,null,null,null,null,null,null,null,null,null,null,0]
[null,null,null,null,null,null,null,null,null,null,null,null,0]
[null,null,null,null,null,null,null,null,null,null,null,null,0]
[null,null,null,null,null,null,null,null,null,null,null,null,0]
[null,null,null,null,null,null,null,null,null,null,null,null,0]
[null,null,null,null,null,null,null,null,null,null,null,null,0]
[null,null,null,null,null,null,null,null,null,null,null,null,0]
[null,null,null,null,null,null,null,null,null,null,null,null,0]
[null,null,null,null,null,null,null,null,null,null,null,null,0]
[null,null,null,null,null,null,null,null,null,null,null,null,0]
[null,null,null,null,null,null,null,null,null,null,null,null,0]
[null,null,null,null,null,null,null,null,null,null,null,null,0]
[null,null,null,null,null,null,null,null,null,null,null,null,0]
[null,null,null,null,null,null,null,null,null,null,null,null,0]
[null,null,null,null,null,null,null,null,null,null,null,null,0]
[null,null,null,null,null,null,null,null,null,null,null,null,0]
[null,null,null,null,null,null,null,null,null,null,null,null,0]
[null,null,null,null,null,null,null,null,null,null,null,null,0]
[null,null,null,null,null,null,null,null,null,null,null,null,0]
[null,null,null,null,null,null,null,null,null,null,null,null,0]
[null,null,null,null,null,null,null,null,null,null,null,null,0]
[null,null,null,null,null,null,null,null,null,null,null,null,0]
[null,null,null,null,null,null,null,null,null,null,null,null,0]
[null,null,null,null,null,null,null,null,null,null,null,null,0]
[null,null,null,null,null,null,null,null,null,null,null,null,0]
[null,null,null,null,null,null,null,null,null,null,null,null,0]
[null,null,null,null,null,null,null,null,null,null,null,null,0]
[null,null,null,null,null,null,null,null,null,null,null,null,0]
[null,null,null,null,null,null,null,null,null,null,null,null,0]
[null,null,null,null,null,null,null,null,null,null,null,null,0]
[null,null,null,null,null,null,null,null,null,null,null,null,0]
[null,null,null,null,null,null,null,null,null,null,null,null,0]
[null,null,null,null,null,null,null,null,null,null,null,null,0]
[null,null,null,null,null,null,null,null,null,null,null,null,0]
[null,null,null,null,null,null,null,null,null,null,null,null,0]
[null,null,null,null,null,null,null,null,null,null,null,null,0]
[null,null,null,null,null,null,null,null,null,null,null,null,0]
[null,null,null,null,null,null,null,null,null,null,null,null,0]
[null,null,null,null,null,null,null,null,null,null,null,null,0]
[null,null,null,null,null,null,null,null,null,null,null,null,0]
[null,null,null,null,null,null,null,null,null,null,null,null,0]
[null,null,null,null,null,null,null,null,null,null,null,null,0]
[null,null,null,null,null,null,null,null,null,null,null,null,0]
[null,null,null,null,null,null,null,null,null,null,null,null,0]
[null,null,null,null,null,null,null,null,null,null,null,null,0]
[null,null,null,null,null,null,null,null,null,null,null,null,0]
[null,null,null,null,null,null,null,null,null,null,null,null,{"$f":"ROUNDDOWN(B451,-1)","v":0}]
[null,null,null,null,null,null,null,null,null,null,null,null,0]
[null,null,null,null,null,null,null,null,null,null,null,null,0]
[null,null,null,null,null,null,null,null,null,null,null,null,0]
[null,null,null,null,null,null,null,null,null,null,null,null,0]
[null,null,null,null,null,null,null,null,null,null,null,null,0]
[null,null,null,null,null,null,null,null,null,null,null,null,0]
[null,null,null,null,null,null,null,null,null,null,null,null,0]
[null,null,null,null,null,null,null,null,null,null,null,null,0]
[null,null,null,null,null,null,null,null,null,null,null,null,0]
[null,null,null,null,null,null,null,null,null,null,null,null,0]
[null,null,null,null,null,null,null,null,null,null,null,null,0]
[null,null,null,null,null,null,null,null,null,null,null,null,0]
[null,null,null,null,null,null,null,null,null,null,null,null,0]
[null,null,null,null,null,null,null,null,null,null,null,null,0]
[null,null,null,null,null,null,null,null,null,null,null,null,0]
[null,null,null,null,null,null,null,null,null,null,null,null,0]
[null,null,null,null,null,null,null,null,null,null,null,null,0]
[null,null,null,null,null,null,null,null,null,null,null,null,0]
[null,null,null,null,null,null,null,null,null,null,null,null,0]
[null,null,null,null,null,null,null,null,null,null,null,null,0]
[null,null,null,null,null,null,null,null,null,null,null,null,0]
[null,null,null,null,null,null,null,null,null,null,null,null,0]
[null,null,null,null,null,null,null,null,null,null,null,null,0]
[null,null,null,null,null,null,null,null,null,null,null,null,0]
[null,null,null,null,null,null,null,null,null,null,null,null,0]
[null,null,null,null,null,null,null,null,null,null,null,null,0]
[null,null,null,null,null,null,null,null,null,null,null,null,0]
[null,null,null,null,null,null,null,null,null,null,null,null,0]
[null,null,null,null,null,null,null,null,null,null,null,null,0]
[null,null,null,null,null,null,null,null,null,null,null,null,0]
[null,null,null,null,null,null,null,null,null,null,null,null,0]
[null,null,null,null,null,null,null,null,null,null,null,null,0]
[null,null,null,null,null,null,null,null,null,null,null,null,0]
[null,null,null,null,null,null,null,null,null,null,null,null,0]
[null,null,null,null,null,null,null,null,null,null,null,null,0]
[null,null,null,null,null,null,null,null,null,null,null,null,0]
[null,null,null,null,null,null,null,null,null,null,null,null,0]
[null,null,null,null,null,null,null,null,null,null,null,null,0]
[null,null,null,null,null,null,null,null,null,null,null,null,0]
[null,null,null,null,null,null,null,null,null,null,null,null,0]
[null,null,null,null,null,null,null,null,null,null,null,null,0]
[null,null,null,null,null,null,null,null,null,null,null,null,0]
[null,null,null,null,null,null,null,null,null,null,null,null,0]
[null,null,null,null,null,null,null,null,null,null,null,null,0]
[null,null,null,null,null,null,null,null,null,null,null,null,0]
[null,null,null,null,null,null,null,null,null,null,null,null,0]
[null,null,null,null,null,null,null,null,null,null,null,null,0]
[null,null,null,null,null,null,null,null,null,null,null,null,0]
[null,null,null,null,null,null,null,null,null,null,null,null,0]
[null,null,null,null,null,null,null,null,null,null,null,null,0]
[null,null,null,null,null,null,null,null,null,null,null,null,0]
[null,null,null,null,null,null,null,null,null,null,null,null,0]
[null,null,null,null,null,null,null,null,null,null,null,null,0]
[null,null,null,null,null,null,null,null,null,null,null,null,0]
[null,null,null,null,null,null,null,null,null,null,null,null,0]
[null,null,null,null,null,null,null,null,null,null,null,null,0]
[null,null,null,null,null,null,null,null,null,null,null,null,0]
[null,null,null,null,null,null,null,null,null,null,null,null,0]
[null,null,null,null,null,null,null,null,null,null,null,null,0]
[null,null,null,null,null,null,null,null,null,null,null,null,0]
[null,null,null,null,null,null,null,null,null,null,null,null,0]
[null,null,null,null,null,null,null,null,null,null,null,null,0]
[null,null,null,null,null,null,null,null,null,null,null,null,0]
[null,null,null,null,null,null,null,null,null,null,null,null,{"$f":"ROUNDDOWN(B515,-1)","v":0}]
[null,null,null,null,null,null,null,null,null,null,null,null,0]
[null,null,null,null,null,null,null,null,null,null,null,null,0]
[null,null,null,null,null,null,null,null,null,null,null,null,0]
[null,null,null,null,null,null,null,null,null,null,null,null,0]
[null,null,null,null,null,null,null,null,null,null,null,null,0]
[null,null,null,null,null,null,null,null,null,null,null,null,0]
[null,null,null,null,null,null,null,null,null,null,null,null,0]
[null,null,null,null,null,null,null,null,null,null,null,null,0]
[null,null,null,null,null,null,null,null,null,null,null,null,0]
[null,null,null,null,null,null,null,null,null,null,null,null,0]
[null,null,null,null,null,null,null,null,null,null,null,null,0]
[null,null,null,null,null,null,null,null,null,null,null,null,0]
[null,null,null,null,null,null,null,null,null,null,null,null,0]
[null,null,null,null,null,null,null,null,null,null,null,null,0]
[null,null,null,null,null,null,null,null,null,null,null,null,0]
[null,null,null,null,null,null,null,null,null,null,null,null,0]
[null,null,null,null,null,null,null,null,null,null,null,null,0]
[null,null,null,null,null,null,null,null,null,null,null,null,0]
[null,null,null,null,null,null,null,null,null,null,null,null,0]
[null,null,null,null,null,null,null,null,null,null,null,null,0]
[null,null,null,null,null,null,null,null,null,null,null,null,0]
[null,null,null,null,null,null,null,null,null,null,null,null,0]
[null,null,null,null,null,null,null,null,null,null,null,null,0]
[null,null,null,null,null,null,null,null,null,null,null,null,0]
[null,null,null,null,null,null,null,null,null,null,null,null,0]
[null,null,null,null,null,null,null,null,null,null,null,null,0]
[null,null,null,null,null,null,null,null,null,null,null,null,0]
[null,null,null,null,null,null,null,null,null,null,null,null,0]
[null,null,null,null,null,null,null,null,null,null,null,null,0]
[null,null,null,null,null,null,null,null,null,null,null,null,0]
[null,null,null,null,null,null,null,null,null,null,null,null,0]
[null,null,null,null,null,null,null,null,null,null,null,null,0]
[null,null,null,null,null,null,null,null,null,null,null,null,0]
[null,null,null,null,null,null,null,null,null,null,null,null,0]
[null,null,null,null,null,null,null,null,null,null,null,null,0]
[null,null,null,null,null,null,null,null,null,null,null,null,0]
[null,null,null,null,null,null,null,null,null,null,null,null,0]
[null,null,null,null,null,null,null,null,null,null,null,null,0]
[null,null,null,null,null,null,null,null,null,null,null,null,0]
[null,null,null,null,null,null,null,null,null,null,null,null,0]
[null,null,null,null,null,null,null,null,null,null,null,null,0]
[null,null,null,null,null,null,null,null,null,null,null,null,0]
[null,null,null,null,null,null,null,null,null,null,null,null,0]
[null,null,null,null,null,null,null,null,null,null,null,null,0]
[null,null,null,null,null,null,null,null,null,null,null,null,0]
[null,null,null,null,null,null,null,null,null,null,null,null,0]
[null,null,null,null,null,null,null,null,null,null,null,null,0]
[null,null,null,null,null,null,null,null,null,null,null,null,0]
[null,null,null,null,null,null,null,null,null,null,null,null,0]
[null,null,null,null,null,null,null,null,null,null,null,null,0]
[null,null,null,null,null,null,null,null,null,null,null,null,0]
[null,null,null,null,null,null,null,null,null,null,null,null,0]
[null,null,null,null,null,null,null,null,null,null,null,null,0]
[null,null,null,null,null,null,null,null,null,null,null,null,0]
[null,null,null,null,null,null,null,null,null,null,null,null,0]
[null,null,null,null,null,null,null,null,null,null,null,null,0]
[null,null,null,null,null,null,null,null,null,null,null,null,0]
[null,null,null,null,null,null,null,null,null,null,null,null,0]
[null,null,null,null,null,null,null,null,null,null,null,null,0]
[null,null,null,null,null,null,null,null,null,null,null,null,0]
[null,null,null,null,null,null,null,null,null,null,null,null,0]
[null,null,null,null,null,null,null,null,null,null,null,null,0]
[null,null,null,null,null,null,null,null,null,null,null,null,0]
[null,null,null,null,null,null,null,null,null,null,null,null,{"$f":"ROUNDDOWN(B579,-1)","v":0}]
[null,null,null,null,null,null,null,null,null,null,null,null,0]
[null,null,null,null,null,null,null,null,null,null,null,null,0]
[null,null,null,null,null,null,null,null,null,null,null,null,0]
[null,null,null,null,null,null,null,null,null,null,null,null,0]
[null,null,null,null,null,null,null,null,null,null,null,null,0]
[null,null,null,null,null,null,null,null,null,null,null,null,0]
[null,null,null,null,null,null,null,null,null,null,null,null,0]
[null,null,null,null,null,null,null,null,null,null,null,null,0]
[null,null,null,null,null,null,null,null,null,null,null,null,0]
[null,null,null,null,null,null,null,null,null,null,null,null,0]
[null,null,null,null,null,null,null,null,null,null,null,null,0]
[null,null,null,null,null,null,null,null,null,null,null,null,0]
[null,null,null,null,null,null,null,null,null,null,null,null,0]
[null,null,null,null,null,null,null,null,null,null,null,null,0]
[null,null,null,null,null,null,null,null,null,null,null,null,0]
[null,null,null,null,null,null,null,null,null,null,null,null,0]
[null,null,null,null,null,null,null,null,null,null,null,null,0]
[null,null,null,null,null,null,null,null,null,null,null,null,0]
[null,null,null,null,null,null,null,null,null,null,null,null,0]
[null,null,null,null,null,null,null,null,null,null,null,null,0]
[null,null,null,null,null,null,null,null,null,null,null,null,0]
[null,null,null,null,null,null,null,null,null,null,null,null,0]
[null,null,null,null,null,null,null,null,null,null,null,null,0]
[null,null,null,null,null,null,null,null,null,null,null,null,0]
[null,null,null,null,null,null,null,null,null,null,null,null,0]
[null,null,null,null,null,null,null,null,null,null,null,null,0]
[null,null,null,null,null,null,null,null,null,null,null,null,0]
[null,null,null,null,null,null,null,null,null,null,null,null,0]
[null,null,null,null,null,null,null,null,null,null,null,null,0]
[null,null,null,null,null,null,null,null,null,null,null,null,0]
[null,null,null,null,null,null,null,null,null,null,null,null,0]
[null,null,null,null,null,null,null,null,null,null,null,null,0]
[null,null,null,null,null,null,null,null,null,null,null,null,0]
[null,null,null,null,null,null,null,null,null,null,null,null,0]
[null,null,null,null,null,null,null,null,null,null,null,null,0]
[null,null,null,null,null,null,null,null,null,null,null,null,0]
[null,null,null,null,null,null,null,null,null,null,null,null,0]
[null,null,null,null,null,null,null,null,null,null,null,null,0]
[null,null,null,null,null,null,null,null,null,null,null,null,0]
[null,null,null,null,null,null,null,null,null,null,null,null,0]
[null,null,null,null,null,null,null,null,null,null,null,null,0]
[null,null,null,null,null,null,null,null,null,null,null,null,0]
[null,null,null,null,null,null,null,null,null,null,null,null,0]
[null,null,null,null,null,null,null,null,null,null,null,null,0]
[null,null,null,null,null,null,null,null,null,null,null,null,0]
[null,null,null,null,null,null,null,null,null,null,null,null,0]
[null,null,null,null,null,null,null,null,null,null,null,null,0]
[null,null,null,null,null,null,null,null,null,null,null,null,0]
[null,null,null,null,null,null,null,null,null,null,null,null,0]
[null,null,null,null,null,null,null,null,null,null,null,null,0]
[null,null,null,null,null,null,null,null,null,null,null,null,0]
[null,null,null,null,null,null,null,null,null,null,null,null,0]
[null,null,null,null,null,null,null,null,null,null,null,null,0]
[null,null,null,null,null,null,null,null,null,null,null,null,0]
[null,null,null,null,null,null,null,null,null,null,null,null,0]
[null,null,null,null,null,null,null,null,null,null,null,null,0]
[null,null,null,null,null,null,null,null,null,null,null,null,0]
[null,null,null,null,null,null,null,null,null,null,null,null,0]
[null,null,null,null,null,null,null,null,null,null,null,null,0]
[null,null,null,null,null,null,null,null,null,null,null,null,0]
[null,null,null,null,null,null,null,null,null,null,null,null,0]
[null,null,null,null,null,null,null,null,null,null,null,null,0]
[null,null,null,null,null,null,null,null,null,null,null,null,0]
[null,null,null,null,null,null,null,null,null,null,null,null,{"$f":"ROUNDDOWN(B643,-1)","v":0}]
[null,null,null,null,null,null,null,null,null,null,null,null,0]
[null,null,null,null,null,null,null,null,null,null,null,null,0]
[null,null,null,null,null,null,null,null,null,null,null,null,0]
[null,null,null,null,null,null,null,null,null,null,null,null,0]
[null,null,null,null,null,null,null,null,null,null,null,null,0]
[null,null,null,null,null,null,null,null,null,null,null,null,0]
[null,null,null,null,null,null,null,null,null,null,null,null,0]
[null,null,null,null,null,null,null,null,null,null,null,null,0]
[null,null,null,null,null,null,null,null,null,null,null,null,0]
[null,null,null,null,null,null,null,null,null,null,null,null,0]
[null,null,null,null,null,null,null,null,null,null,null,null,0]
[null,null,null,null,null,null,null,null,null,null,null,null,0]
[null,null,null,null,null,null,null,null,null,null,null,null,0]
[null,null,null,null,null,null,null,null,null,null,null,null,0]
[null,null,null,null,null,null,null,null,null,null,null,null,0]
[null,null,null,null,null,null,null,null,null,null,null,null,0]
[null,null,null,null,null,null,null,null,null,null,null,null,0]
[null,null,null,null,null,null,null,null,null,null,null,null,0]
[null,null,null,null,null,null,null,null,null,null,null,null,0]
[null,null,null,null,null,null,null,null,null,null,null,null,0]
[null,null,null,null,null,null,null,null,null,null,null,null,0]
[null,null,null,null,null,null,null,null,null,null,null,null,0]
[null,null,null,null,null,null,null,null,null,null,null,null,0]
[null,null,null,null,null,null,null,null,null,null,null,null,0]
[null,null,null,null,null,null,null,null,null,null,null,null,0]
[null,null,null,null,null,null,null,null,null,null,null,null,0]
[null,null,null,null,null,null,null,null,null,null,null,null,0]
[null,null,null,null,null,null,null,null,null,null,null,null,0]
[null,null,null,null,null,null,null,null,null,null,null,null,0]
[null,null,null,null,null,null,null,null,null,null,null,null,0]
[null,null,null,null,null,null,null,null,null,null,null,null,0]
[null,null,null,null,null,null,null,null,null,null,null,null,0]
[null,null,null,null,null,null,null,null,null,null,null,null,0]
[null,null,null,null,null,null,null,null,null,null,null,null,0]
[null,null,null,null,null,null,null,null,null,null,null,null,0]
[null,null,null,null,null,null,null,null,null,null,null,null,0]
[null,null,null,null,null,null,null,null,null,null,null,null,0]
[null,null,null,null,null,null,null,null,null,null,null,null,0]
[null,null,null,null,null,null,null,null,null,null,null,null,0]
[null,null,null,null,null,null,null,null,null,null,null,null,0]
[null,null,null,null,null,null,null,null,null,null,null,null,0]
[null,null,null,null,null,null,null,null,null,null,null,null,0]
[null,null,null,null,null,null,null,null,null,null,null,null,0]
[null,null,null,null,null,null,null,null,null,null,null,null,0]
[null,null,null,null,null,null,null,null,null,null,null,null,0]
[null,null,null,null,null,null,null,null,null,null,null,null,0]
[null,null,null,null,null,null,null,null,null,null,null,null,0]
[null,null,null,null,null,null,null,null,null,null,null,null,0]
[null,null,null,null,null,null,null,null,null,null,null,null,0]
[null,null,null,null,null,null,null,null,null,null,null,null,0]
[null,null,null,null,null,null,null,null,null,null,null,null,0]
[null,null,null,null,null,null,null,null,null,null,null,null,0]
[null,null,null,null,null,null,null,null,null,null,null,null,0]
[null,null,null,null,null,null,null,null,null,null,null,null,0]
[null,null,null,null,null,null,null,null,null,null,null,null,0]
[null,null,null,null,null,null,null,null,null,null,null,null,0]
[null,null,null,null,null,null,null,null,null,null,null,null,0]
[null,null,null,null,null,null,null,null,null,null,null,null,0]
[null,null,null,null,null,null,null,null,null,null,null,null,0]
[null,null,null,null,null,null,null,null,null,null,null,null,0]
[null,null,null,null,null,null,null,null,null,null,null,null,0]
[null,null,null,null,null,null,null,null,null,null,null,null,0]
[null,null,null,null,null,null,null,null,null,null,null,null,0]
[null,null,null,null,null,null,null,null,null,null,null,null,{"$f":"ROUNDDOWN(B707,-1)","v":0}]
[null,null,null,null,null,null,null,null,null,null,null,null,0]
[null,null,null,null,null,null,null,null,null,null,null,null,0]
[null,null,null,null,null,null,null,null,null,null,null,null,0]
[null,null,null,null,null,null,null,null,null,null,null,null,0]
[null,null,null,null,null,null,null,null,null,null,null,null,0]
[null,null,null,null,null,null,null,null,null,null,null,null,0]
[null,null,null,null,null,null,null,null,null,null,null,null,0]
[null,null,null,null,null,null,null,null,null,null,null,null,0]
[null,null,null,null,null,null,null,null,null,null,null,null,0]
[null,null,null,null,null,null,null,null,null,null,null,null,0]
[null,null,null,null,null,null,null,null,null,null,null,null,0]
[null,null,null,null,null,null,null,null,null,null,null,null,0]
[null,null,null,null,null,null,null,null,null,null,null,null,0]
[null,null,null,null,null,null,null,null,null,null,null,null,0]
[null,null,null,null,null,null,null,null,null,null,null,null,0]
[null,null,null,null,null,null,null,null,null,null,null,null,0]
[null,null,null,null,null,null,null,null,null,null,null,null,0]
[null,null,null,null,null,null,null,null,null,null,null,null,0]
[null,null,null,null,null,null,null,null,null,null,null,null,0]
[null,null,null,null,null,null,null,null,null,null,null,null,0]
[null,null,null,null,null,null,null,null,null,null,null,null,0]
[null,null,null,null,null,null,null,null,null,null,null,null,0]
[null,null,null,null,null,null,null,null,null,null,null,null,0]
[null,null,null,null,null,null,null,null,null,null,null,null,0]
[null,null,null,null,null,null,null,null,null,null,null,null,0]
[null,null,null,null,null,null,null,null,null,null,null,null,0]
[null,null,null,null,null,null,null,null,null,null,null,null,0]
[null,null,null,null,null,null,null,null,null,null,null,null,0]
[null,null,null,null,null,null,null,null,null,null,null,null,0]
[null,null,null,null,null,null,null,null,null,null,null,null,0]
[null,null,null,null,null,null,null,null,null,null,null,null,0]
[null,null,null,null,null,null,null,null,null,null,null,null,0]
[null,null,null,null,null,null,null,null,null,null,null,null,0]
[null,null,null,null,null,null,null,null,null,null,null,null,0]
[null,null,null,null,null,null,null,null,null,null,null,null,0]
[null,null,null,null,null,null,null,null,null,null,null,null,0]
[null,null,null,null,null,null,null,null,null,null,null,null,0]
[null,null,null,null,null,null,null,null,null,null,null,null,0]
[null,null,null,null,null,null,null,null,null,null,null,null,0]
[null,null,null,null,null,null,null,null,null,null,null,null,0]
[null,null,null,null,null,null,null,null,null,null,null,null,0]
[null,null,null,null,null,null,null,null,null,null,null,null,0]
[null,null,null,null,null,null,null,null,null,null,null,null,0]
[null,null,null,null,null,null,null,null,null,null,null,null,0]
[null,null,null,null,null,null,null,null,null,null,null,null,0]
[null,null,null,null,null,null,null,null,null,null,null,null,0]
[null,null,null,null,null,null,null,null,null,null,null,null,0]
[null,null,null,null,null,null,null,null,null,null,null,null,0]
[null,null,null,null,null,null,null,null,null,null,null,null,0]
[null,null,null,null,null,null,null,null,null,null,null,null,0]
[null,null,null,null,null,null,null,null,null,null,null,null,0]
[null,null,null,null,null,null,null,null,null,null,null,null,0]
[null,null,null,null,null,null,null,null,null,null,null,null,0]
[null,null,null,null,null,null,null,null,null,null,null,null,0]
[null,null,null,null,null,null,null,null,null,null,null,null,0]
[null,null,null,null,null,null,null,null,null,null,null,null,0]
[null,null,null,null,null,null,null,null,null,null,null,null,0]
[null,null,null,null,null,null,null,null,null,null,null,null,0]
[null,null,null,null,null,null,null,null,null,null,null,null,0]
[null,null,null,null,null,null,null,null,null,null,null,null,0]
[null,null,null,null,null,null,null,null,null,null,null,null,0]
[null,null,null,null,null,null,null,null,null,null,null,null,0]
[null,null,null,null,null,null,null,null,null,null,null,null,0]
[null,null,null,null,null,null,null,null,null,null,null,null,{"$f":"ROUNDDOWN(B771,-1)","v":0}]
[null,null,null,null,null,null,null,null,null,null,null,null,0]
[null,null,null,null,null,null,null,null,null,null,null,null,0]
[null,null,null,null,null,null,null,null,null,null,null,null,0]
[null,null,null,null,null,null,null,null,null,null,null,null,0]
[null,null,null,null,null,null,null,null,null,null,null,null,0]
[null,null,null,null,null,null,null,null,null,null,null,null,0]
[null,null,null,null,null,null,null,null,null,null,null,null,0]
[null,null,null,null,null,null,null,null,null,null,null,null,0]
[null,null,null,null,null,null,null,null,null,null,null,null,0]
[null,null,null,null,null,null,null,null,null,null,null,null,0]
[null,null,null,null,null,null,null,null,null,null,null,null,0]
[null,null,null,null,null,null,null,null,null,null,null,null,0]
[null,null,null,null,null,null,null,null,null,null,null,null,0]
[null,null,null,null,null,null,null,null,null,null,null,null,0]
[null,null,null,null,null,null,null,null,null,null,null,null,0]
[null,null,null,null,null,null,null,null,null,null,null,null,0]
[null,null,null,null,null,null,null,null,null,null,null,null,0]
[null,null,null,null,null,null,null,null,null,null,null,null,0]
[null,null,null,null,null,null,null,null,null,null,null,null,0]
[null,null,null,null,null,null,null,null,null,null,null,null,0]
[null,null,null,null,null,null,null,null,null,null,null,null,0]
[null,null,null,null,null,null,null,null,null,null,null,null,0]
[null,null,null,null,null,null,null,null,null,null,null,null,0]
[null,null,null,null,null,null,null,null,null,null,null,null,0]
[null,null,null,null,null,null,null,null,null,null,null,null,0]
[null,null,null,null,null,null,null,null,null,null,null,null,0]
[null,null,null,null,null,null,null,null,null,null,null,null,0]
[null,null,null,null,null,null,null,null,null,null,null,null,0]
[null,null,null,null,null,null,null,null,null,null,null,null,0]
[null,null,null,null,null,null,null,null,null,null,null,null,0]
[null,null,null,null,null,null,null,null,null,null,null,null,0]
[null,null,null,null,null,null,null,null,null,null,null,null,0]
[null,null,null,null,null,null,null,null,null,null,null,null,0]
[null,null,null,null,null,null,null,null,null,null,null,null,0]
[null,null,null,null,null,null,null,null,null,null,null,null,0]
[null,null,null,null,null,null,null,null,null,null,null,null,0]
[null,null,null,null,null,null,null,null,null,null,null,null,0]
[null,null,null,null,null,null,null,null,null,null,null,null,0]
[null,null,null,null,null,null,null,null,null,null,null,null,0]
[null,null,null,null,null,null,null,null,null,null,null,null,0]
[null,null,null,null,null,null,null,null,null,null,null,null,0]
[null,null,null,null,null,null,null,null,null,null,null,null,0]
[null,null,null,null,null,null,null,null,null,null,null,null,0]
[null,null,null,null,null,null,null,null,null,null,null,null,0]
[null,null,null,null,null,null,null,null,null,null,null,null,0]
[null,null,null,null,null,null,null,null,null,null,null,null,0]
[null,null,null,null,null,null,null,null,null,null,null,null,0]
[null,null,null,null,null,null,null,null,null,null,null,null,0]
[null,null,null,null,null,null,null,null,null,null,null,null,0]
[null,null,null,null,null,null,null,null,null,null,null,null,0]
[null,null,null,null,null,null,null,null,null,null,null,null,0]
[null,null,null,null,null,null,null,null,null,null,null,null,0]
[null,null,null,null,null,null,null,null,null,null,null,null,0]
[null,null,null,null,null,null,null,null,null,null,null,null,0]
[null,null,null,null,null,null,null,null,null,null,null,null,0]
[null,null,null,null,null,null,null,null,null,null,null,null,0]
[null,null,null,null,null,null,null,null,null,null,null,null,0]
[null,null,null,null,null,null,null,null,null,null,null,null,0]
[null,null,null,null,null,null,null,null,null,null,null,null,0]
[null,null,null,null,null,null,null,null,null,null,null,null,0]
[null,null,null,null,null,null,null,null,null,null,null,null,0]
[null,null,null,null,null,null,null,null,null,null,null,null,0]
[null,null,null,null,null,null,null,null,null,null,null,null,0]
[null,null,null,null,null,null,null,null,null,null,null,null,{"$f":"ROUNDDOWN(B835,-1)","v":0}]
[null,null,null,null,null,null,null,null,null,null,null,null,0]
[null,null,null,null,null,null,null,null,null,null,null,null,0]
[null,null,null,null,null,null,null,null,null,null,null,null,0]
[null,null,null,null,null,null,null,null,null,null,null,null,0]
[null,null,null,null,null,null,null,null,null,null,null,null,0]
[null,null,null,null,null,null,null,null,null,null,null,null,0]
[null,null,null,null,null,null,null,null,null,null,null,null,0]
[null,null,null,null,null,null,null,null,null,null,null,null,0]
[null,null,null,null,null,null,null,null,null,null,null,null,0]
[null,null,null,null,null,null,null,null,null,null,null,null,0]
[null,null,null,null,null,null,null,null,null,null,null,null,0]
[null,null,null,null,null,null,null,null,null,null,null,null,0]
[null,null,null,null,null,null,null,null,null,null,null,null,0]
[null,null,null,null,null,null,null,null,null,null,null,null,0]
[null,null,null,null,null,null,null,null,null,null,null,null,0]
[null,null,null,null,null,null,null,null,null,null,null,null,0]
[null,null,null,null,null,null,null,null,null,null,null,null,0]
[null,null,null,null,null,null,null,null,null,null,null,null,0]
[null,null,null,null,null,null,null,null,null,null,null,null,0]
[null,null,null,null,null,null,null,null,null,null,null,null,0]
[null,null,null,null,null,null,null,null,null,null,null,null,0]
[null,null,null,null,null,null,null,null,null,null,null,null,0]
[null,null,null,null,null,null,null,null,null,null,null,null,0]
[null,null,null,null,null,null,null,null,null,null,null,null,0]
[null,null,null,null,null,null,null,null,null,null,null,null,0]
[null,null,null,null,null,null,null,null,null,null,null,null,0]
[null,null,null,null,null,null,null,null,null,null,null,null,0]
[null,null,null,null,null,null,null,null,null,null,null,null,0]
[null,null,null,null,null,null,null,null,null,null,null,null,0]
[null,null,null,null,null,null,null,null,null,null,null,null,0]
[null,null,null,null,null,null,null,null,null,null,null,null,0]
[null,null,null,null,null,null,null,null,null,null,null,null,0]
[null,null,null,null,null,null,null,null,null,null,null,null,0]
[null,null,null,null,null,null,null,null,null,null,null,null,0]
[null,null,null,null,null,null,null,null,null,null,null,null,0]
[null,null,null,null,null,null,null,null,null,null,null,null,0]
[null,null,null,null,null,null,null,null,null,null,null,null,0]
[null,null,null,null,null,null,null,null,null,null,null,null,0]
[null,null,null,null,null,null,null,null,null,null,null,null,0]
[null,null,null,null,null,null,null,null,null,null,null,null,0]
[null,null,null,null,null,null,null,null,null,null,null,null,0]
[null,null,null,null,null,null,null,null,null,null,null,null,0]
[null,null,null,null,null,null,null,null,null,null,null,null,0]
[null,null,null,null,null,null,null,null,null,null,null,null,0]
[null,null,null,null,null,null,null,null,null,null,null,null,0]
[null,null,null,null,null,null,null,null,null,null,null,null,0]
[null,null,null,null,null,null,null,null,null,null,null,null,0]
[null,null,null,null,null,null,null,null,null,null,null,null,0]
[null,null,null,null,null,null,null,null,null,null,null,null,0]
[null,null,null,null,null,null,null,null,null,null,null,null,0]
[null,null,null,null,null,null,null,null,null,null,null,null,0]
[null,null,null,null,null,null,null,null,null,null,null,null,0]
[null,null,null,null,null,null,null,null,null,null,null,null,0]
[null,null,null,null,null,null,null,null,null,null,null,null,0]
[null,null,null,null,null,null,null,null,null,null,null,null,0]
[null,null,null,null,null,null,null,null,null,null,null,null,0]
[null,null,null,null,null,null,null,null,null,null,null,null,0]
[null,null,null,null,null,null,null,null,null,null,null,null,0]
[null,null,null,null,null,null,null,null,null,null,null,null,0]
[null,null,null,null,null,null,null,null,null,null,null,null,0]
[null,null,null,null,null,null,null,null,null,null,null,null,0]
[null,null,null,null,null,null,null,null,null,null,null,null,0]
[null,null,null,null,null,null,null,null,null,null,null,null,0]
[null,null,null,null,null,null,null,null,null,null,null,null,{"$f":"ROUNDDOWN(B899,-1)","v":0}]
[null,null,null,null,null,null,null,null,null,null,null,null,0]
[null,null,null,null,null,null,null,null,null,null,null,null,0]
[null,null,null,null,null,null,null,null,null,null,null,null,0]
[null,null,null,null,null,null,null,null,null,null,null,null,0]
[null,null,null,null,null,null,null,null,null,null,null,null,0]
[null,null,null,null,null,null,null,null,null,null,null,null,0]
[null,null,null,null,null,null,null,null,null,null,null,null,0]
[null,null,null,null,null,null,null,null,null,null,null,null,0]
[null,null,null,null,null,null,null,null,null,null,null,null,0]
[null,null,null,null,null,null,null,null,null,null,null,null,0]
[null,null,null,null,null,null,null,null,null,null,null,null,0]
[null,null,null,null,null,null,null,null,null,null,null,null,0]
[null,null,null,null,null,null,null,null,null,null,null,null,0]
[null,null,null,null,null,null,null,null,null,null,null,null,0]
[null,null,null,null,null,null,null,null,null,null,null,null,0]
[null,null,null,null,null,null,null,null,null,null,null,null,0]
[null,null,null,null,null,null,null,null,null,null,null,null,0]
[null,null,null,null,null,null,null,null,null,null,null,null,0]
[null,null,null,null,null,null,null,null,null,null,null,null,0]
[null,null,null,null,null,null,null,null,null,null,null,null,0]
[null,null,null,null,null,null,null,null,null,null,null,null,0]
[null,null,null,null,null,null,null,null,null,null,null,null,0]
[null,null,null,null,null,null,null,null,null,null,null,null,0]
[null,null,null,null,null,null,null,null,null,null,null,null,0]
[null,null,null,null,null,null,null,null,null,null,null,null,0]
[null,null,null,null,null,null,null,null,null,null,null,null,0]
[null,null,null,null,null,null,null,null,null,null,null,null,0]
[null,null,null,null,null,null,null,null,null,null,null,null,0]
[null,null,null,null,null,null,null,null,null,null,null,null,0]
[null,null,null,null,null,null,null,null,null,null,null,null,0]
[null,null,null,null,null,null,null,null,null,null,null,null,0]
[null,null,null,null,null,null,null,null,null,null,null,null,0]
[null,null,null,null,null,null,null,null,null,null,null,null,0]
[null,null,null,null,null,null,null,null,null,null,null,null,0]
[null,null,null,null,null,null,null,null,null,null,null,null,0]
[null,null,null,null,null,null,null,null,null,null,null,null,0]
[null,null,null,null,null,null,null,null,null,null,null,null,0]
[null,null,null,null,null,null,null,null,null,null,null,null,0]
[null,null,null,null,null,null,null,null,null,null,null,null,0]
[null,null,null,null,null,null,null,null,null,null,null,null,0]
[null,null,null,null,null,null,null,null,null,null,null,null,0]
[null,null,null,null,null,null,null,null,null,null,null,null,0]
[null,null,null,null,null,null,null,null,null,null,null,null,0]
[null,null,null,null,null,null,null,null,null,null,null,null,0]
[null,null,null,null,null,null,null,null,null,null,null,null,0]
[null,null,null,null,null,null,null,null,null,null,null,null,0]
[null,null,null,null,null,null,null,null,null,null,null,null,0]
[null,null,null,null,null,null,null,null,null,null,null,null,0]
[null,null,null,null,null,null,null,null,null,null,null,null,0]
[null,null,null,null,null,null,null,null,null,null,null,null,0]
[null,null,null,null,null,null,null,null,null,null,null,null,0]
[null,null,null,null,null,null,null,null,null,null,null,null,0]
[null,null,null,null,null,null,null,null,null,null,null,null,0]
[null,null,null,null,null,null,null,null,null,null,null,null,0]
[null,null,null,null,null,null,null,null,null,null,null,null,0]
[null,null,null,null,null,null,null,null,null,null,null,null,0]
[null,null,null,null,null,null,null,null,null,null,null,null,0]
[null,null,null,null,null,null,null,null,null,null,null,null,0]
[null,null,null,null,null,null,null,null,null,null,null,null,0]
[null,null,null,null,null,null,null,null,null,null,null,null,0]
[null,null,null,null,null,null,null,null,null,null,null,null,0]
[null,null,null,null,null,null,null,null,null,null,null,null,0]
[null,null,null,null,null,null,null,null,null,null,null,null,0]
[null,null,null,null,null,null,null,null,null,null,null,null,{"$f":"ROUNDDOWN(B963,-1)","v":0}]
[null,null,null,null,null,null,null,null,null,null,null,null,0]
[null,null,null,null,null,null,null,null,null,null,null,null,0]
[null,null,null,null,null,null,null,null,null,null,null,null,0]
[null,null,null,null,null,null,null,null,null,null,null,null,0]
[null,null,null,null,null,null,null,null,null,null,null,null,0]
[null,null,null,null,null,null,null,null,null,null,null,null,0]
[null,null,null,null,null,null,null,null,null,null,null,null,0]
[null,null,null,null,null,null,null,null,null,null,null,null,0]
[null,null,null,null,null,null,null,null,null,null,null,null,0]
[null,null,null,null,null,null,null,null,null,null,null,null,0]
[null,null,null,null,null,null,null,null,null,null,null,null,0]
[null,null,null,null,null,null,null,null,null,null,null,null,0]
[null,null,null,null,null,null,null,null,null,null,null,null,0]
[null,null,null,null,null,null,null,null,null,null,null,null,0]
[null,null,null,null,null,null,null,null,null,null,null,null,0]
[null,null,null,null,null,null,null,null,null,null,null,null,0]
[null,null,null,null,null,null,null,null,null,null,null,null,0]
[null,null,null,null,null,null,null,null,null,null,null,null,0]
[null,null,null,null,null,null,null,null,null,null,null,null,0]
[null,null,null,null,null,null,null,null,null,null,null,null,0]
[null,null,null,null,null,null,null,null,null,null,null,null,0]
[null,null,null,null,null,null,null,null,null,null,null,null,0]
[null,null,null,null,null,null,null,null,null,null,null,null,0]
[null,null,null,null,null,null,null,null,null,null,null,null,0]
[null,null,null,null,null,null,null,null,null,null,null,null,0]
[null,null,null,null,null,null,null,null,null,null,null,null,0]
[null,null,null,null,null,null,null,null,null,null,null,null,0]
[null,null,null,null,null,null,null,null,null,null,null,null,0]
[null,null,null,null,null,null,null,null,null,null,null,null,0]
[null,null,null,null,null,null,null,null,null,null,null,null,0]
[null,null,null,null,null,null,null,null,null,null,null,null,0]
[null,null,null,null,null,null,null,null,null,null,null,null,0]
[null,null,null,null,null,null,null,null,null,null,null,null,0]
[null,null,null,null,null,null,null,null,null,null,null,null,0]
[null,null,null,null,null,null,null,null,null,null,null,null,0]
[null,null,null,null,null,null,null,null,null,null,null,null,0]
[null,null,null,null,null,null,null,null,null,null,null,null,0]

{"sheet":"年代別","index":1,"n_rows":83,"n_cols":14,"rows_kept":83,"cut":false,"hidden":false,"merged":[[81,8,82,8],[67,9,67,13],[69,8,70,8],[71,8,72,8],[73,8,74,8],[75,8,76,8],[77,8,78,8],[79,8,80,8]]}
[]
[]
[]
[]
[]
[]
[]
[]
[]
[]
[]
[]
[]
[]
[]
[]
[]
[]
[]
[]
[]
[]
[]
[]
[]
[]
[]
[]
[]
[]
[]
[]
[]
[]
[]
[]
[]
[]
[]
[]
[]
[]
[]
[]
[]
[]
[]
[]
[]
[]
[]
[]
[]
[]
[]
[]
[]
[]
[]
[]
[]
[]
[]
[]
[]
[]
[]
[null,null,null,null,null,null,null,null,null,"Ⅰ身体機能計測/Ⅱ身体機能に対する意識"]
[null,null,null,null,null,null,null,null,"年代平均","①歩行能力・筋力","②敏捷性","③動的バランス","④静的バランス\n（閉眼）","⑤静的バランス\n（開眼）"]
[null,null,null,null,null,null,null,null,10,{"$f":"(SUMIF(集計!$M:$M,$I70,集計!C:C)/(COUNTIF(集計!$M:$M,$I70)))","v":{"$error":"#DIV/0!"}},{"$f":"(SUMIF(集計!$M:$M,$I70,集計!D:D)/(COUNTIF(集計!$M:$M,$I70)))","v":{"$error":"#DIV/0!"}},{"$f":"(SUMIF(集計!$M:$M,$I70,集計!E:E)/(COUNTIF(集計!$M:$M,$I70)))","v":{"$error":"#DIV/0!"}},{"$f":"(SUMIF(集計!$M:$M,$I70,集計!F:F)/(COUNTIF(集計!$M:$M,$I70)))","v":{"$error":"#DIV/0!"}},{"$f":"(SUMIF(集計!$M:$M,$I70,集計!G:G)/(COUNTIF(集計!$M:$M,$I70)))","v":{"$error":"#DIV/0!"}}]
[null,null,null,null,null,null,null,null,null,{"$f":"SUMIF(集計!$M:$M,$I70,集計!H:H)/(COUNTIF(集計!$M:$M,$I70))","v":{"$error":"#DIV/0!"}},{"$f":"SUMIF(集計!$M:$M,$I70,集計!I:I)/(COUNTIF(集計!$M:$M,$I70))","v":{"$error":"#DIV/0!"}},{"$f":"SUMIF(集計!$M:$M,$I70,集計!J:J)/(COUNTIF(集計!$M:$M,$I70))","v":{"$error":"#DIV/0!"}},{"$f":"SUMIF(集計!$M:$M,$I70,集計!K:K)/(COUNTIF(集計!$M:$M,$I70))","v":{"$error":"#DIV/0!"}},{"$f":"SUMIF(集計!$M:$M,$I70,集計!L:L)/(COUNTIF(集計!$M:$M,$I70))","v":{"$error":"#DIV/0!"}}]
[null,null,null,null,null,null,null,null,20,{"$f":"(SUMIF(集計!$M:$M,$I72,集計!C:C)/(COUNTIF(集計!$M:$M,$I72)))","v":{"$error":"#DIV/0!"}},{"$f":"(SUMIF(集計!$M:$M,$I72,集計!D:D)/(COUNTIF(集計!$M:$M,$I72)))","v":{"$error":"#DIV/0!"}},{"$f":"(SUMIF(集計!$M:$M,$I72,集計!E:E)/(COUNTIF(集計!$M:$M,$I72)))","v":{"$error":"#DIV/0!"}},{"$f":"(SUMIF(集計!$M:$M,$I72,集計!F:F)/(COUNTIF(集計!$M:$M,$I72)))","v":{"$error":"#DIV/0!"}},{"$f":"(SUMIF(集計!$M:$M,$I72,集計!G:G)/(COUNTIF(集計!$M:$M,$I72)))","v":{"$error":"#DIV/0!"}}]
[null,null,null,null,null,null,null,null,null,{"$f":"SUMIF(集計!$M:$M,$I72,集計!H:H)/(COUNTIF(集計!$M:$M,$I72))","v":{"$error":"#DIV/0!"}},{"$f":"SUMIF(集計!$M:$M,$I72,集計!I:I)/(COUNTIF(集計!$M:$M,$I72))","v":{"$error":"#DIV/0!"}},{"$f":"SUMIF(集計!$M:$M,$I72,集計!J:J)/(COUNTIF(集計!$M:$M,$I72))","v":{"$error":"#DIV/0!"}},{"$f":"SUMIF(集計!$M:$M,$I72,集計!K:K)/(COUNTIF(集計!$M:$M,$I72))","v":{"$error":"#DIV/0!"}},{"$f":"SUMIF(集計!$M:$M,$I72,集計!L:L)/(COUNTIF(集計!$M:$M,$I72))","v":{"$error":"#DIV/0!"}}]
[null,null,null,null,null,null,null,null,30,{"$f":"(SUMIF(集計!$M:$M,$I74,集計!C:C)/(COUNTIF(集計!$M:$M,$I74)))","v":{"$error":"#DIV/0!"}},{"$f":"(SUMIF(集計!$M:$M,$I74,集計!D:D)/(COUNTIF(集計!$M:$M,$I74)))","v":{"$error":"#DIV/0!"}},{"$f":"(SUMIF(集計!$M:$M,$I74,集計!E:E)/(COUNTIF(集計!$M:$M,$I74)))","v":{"$error":"#DIV/0!"}},{"$f":"(SUMIF(集計!$M:$M,$I74,集計!F:F)/(COUNTIF(集計!$M:$M,$I74)))","v":{"$error":"#DIV/0!"}},{"$f":"(SUMIF(集計!$M:$M,$I74,集計!G:G)/(COUNTIF(集計!$M:$M,$I74)))","v":{"$error":"#DIV/0!"}}]
[null,null,null,null,null,null,null,null,null,{"$f":"SUMIF(集計!$M:$M,$I74,集計!H:H)/(COUNTIF(集計!$M:$M,$I74))","v":{"$error":"#DIV/0!"}},{"$f":"SUMIF(集計!$M:$M,$I74,集計!I:I)/(COUNTIF(集計!$M:$M,$I74))","v":{"$error":"#DIV/0!"}},{"$f":"SUMIF(集計!$M:$M,$I74,集計!J:J)/(COUNTIF(集計!$M:$M,$I74))","v":{"$error":"#DIV/0!"}},{"$f":"SUMIF(集計!$M:$M,$I74,集計!K:K)/(COUNTIF(集計!$M:$M,$I74))","v":{"$error":"#DIV/0!"}},{"$f":"SUMIF(集計!$M:$M,$I74,集計!L:L)/(COUNTIF(集計!$M:$M,$I74))","v":{"$error":"#DIV/0!"}}]
[null,null,null,null,null,null,null,null,40,{"$f":"(SUMIF(集計!$M:$M,$I76,集計!C:C)/(COUNTIF(集計!$M:$M,$I76)))","v":{"$error":"#DIV/0!"}},{"$f":"(SUMIF(集計!$M:$M,$I76,集計!D:D)/(COUNTIF(集計!$M:$M,$I76)))","v":{"$error":"#DIV/0!"}},{"$f":"(SUMIF(集計!$M:$M,$I76,集計!E:E)/(COUNTIF(集計!$M:$M,$I76)))","v":{"$error":"#DIV/0!"}},{"$f":"(SUMIF(集計!$M:$M,$I76,集計!F:F)/(COUNTIF(集計!$M:$M,$I76)))","v":{"$error":"#DIV/0!"}},{"$f":"(SUMIF(集計!$M:$M,$I76,集計!G:G)/(COUNTIF(集計!$M:$M,$I76)))","v":{"$error":"#DIV/0!"}}]
[null,null,null,null,null,null,null,null,null,{"$f":"SUMIF(集計!$M:$M,$I76,集計!H:H)/(COUNTIF(集計!$M:$M,$I76))","v":{"$error":"#DIV/0!"}},{"$f":"SUMIF(集計!$M:$M,$I76,集計!I:I)/(COUNTIF(集計!$M:$M,$I76))","v":{"$error":"#DIV/0!"}},{"$f":"SUMIF(集計!$M:$M,$I76,集計!J:J)/(COUNTIF(集計!$M:$M,$I76))","v":{"$error":"#DIV/0!"}},{"$f":"SUMIF(集計!$M:$M,$I76,集計!K:K)/(COUNTIF(集計!$M:$M,$I76))","v":{"$error":"#DIV/0!"}},{"$f":"SUMIF(集計!$M:$M,$I76,集計!L:L)/(COUNTIF(集計!$M:$M,$I76))","v":{"$error":"#DIV/0!"}}]
[null,null,null,null,null,null,null,null,50,{"$f":"(SUMIF(集計!$M:$M,$I78,集計!C:C)/(COUNTIF(集計!$M:$M,$I78)))","v":{"$error":"#DIV/0!"}},{"$f":"(SUMIF(集計!$M:$M,$I78,集計!D:D)/(COUNTIF(集計!$M:$M,$I78)))","v":{"$error":"#DIV/0!"}},{"$f":"(SUMIF(集計!$M:$M,$I78,集計!E:E)/(COUNTIF(集計!$M:$M,$I78)))","v":{"$error":"#DIV/0!"}},{"$f":"(SUMIF(集計!$M:$M,$I78,集計!F:F)/(COUNTIF(集計!$M:$M,$I78)))","v":{"$error":"#DIV/0!"}},{"$f":"(SUMIF(集計!$M:$M,$I78,集計!G:G)/(COUNTIF(集計!$M:$M,$I78)))","v":{"$error":"#DIV/0!"}}]
[null,null,null,null,null,null,null,null,null,{"$f":"SUMIF(集計!$M:$M,$I78,集計!H:H)/(COUNTIF(集計!$M:$M,$I78))","v":{"$error":"#DIV/0!"}},{"$f":"SUMIF(集計!$M:$M,$I78,集計!I:I)/(COUNTIF(集計!$M:$M,$I78))","v":{"$error":"#DIV/0!"}},{"$f":"SUMIF(集計!$M:$M,$I78,集計!J:J)/(COUNTIF(集計!$M:$M,$I78))","v":{"$error":"#DIV/0!"}},{"$f":"SUMIF(集計!$M:$M,$I78,集計!K:K)/(COUNTIF(集計!$M:$M,$I78))","v":{"$error":"#DIV/0!"}},{"$f":"SUMIF(集計!$M:$M,$I78,集計!L:L)/(COUNTIF(集計!$M:$M,$I78))","v":{"$error":"#DIV/0!"}}]
[null,null,null,null,null,null,null,null,60,{"$f":"(SUMIF(集計!$M:$M,$I80,集計!C:C)/(COUNTIF(集計!$M:$M,$I80)))","v":{"$error":"#DIV/0!"}},{"$f":"(SUMIF(集計!$M:$M,$I80,集計!D:D)/(COUNTIF(集計!$M:$M,$I80)))","v":{"$error":"#DIV/0!"}},{"$f":"(SUMIF(集計!$M:$M,$I80,集計!E:E)/(COUNTIF(集計!$M:$M,$I80)))","v":{"$error":"#DIV/0!"}},{"$f":"(SUMIF(集計!$M:$M,$I80,集計!F:F)/(COUNTIF(集計!$M:$M,$I80)))","v":{"$error":"#DIV/0!"}},{"$f":"(SUMIF(集計!$M:$M,$I80,集計!G:G)/(COUNTIF(集計!$M:$M,$I80)))","v":{"$error":"#DIV/0!"}}]
[null,null,null,null,null,null,null,null,null,{"$f":"SUMIF(集計!$M:$M,$I80,集計!H:H)/(COUNTIF(集計!$M:$M,$I80))","v":{"$error":"#DIV/0!"}},{"$f":"SUMIF(集計!$M:$M,$I80,集計!I:I)/(COUNTIF(集計!$M:$M,$I80))","v":{"$error":"#DIV/0!"}},{"$f":"SUMIF(集計!$M:$M,$I80,集計!J:J)/(COUNTIF(集計!$M:$M,$I80))","v":{"$error":"#DIV/0!"}},{"$f":"SUMIF(集計!$M:$M,$I80,集計!K:K)/(COUNTIF(集計!$M:$M,$I80))","v":{"$error":"#DIV/0!"}},{"$f":"SUMIF(集計!$M:$M,$I80,集計!L:L)/(COUNTIF(集計!$M:$M,$I80))","v":{"$error":"#DIV/0!"}}]
[null,null,null,null,null,null,null,null,70,{"$f":"(SUMIF(集計!$M:$M,$I82,集計!C:C)/(COUNTIF(集計!$M:$M,$I82)))","v":{"$error":"#DIV/0!"}},{"$f":"(SUMIF(集計!$M:$M,$I82,集計!D:D)/(COUNTIF(集計!$M:$M,$I82)))","v":{"$error":"#DIV/0!"}},{"$f":"(SUMIF(集計!$M:$M,$I82,集計!E:E)/(COUNTIF(集計!$M:$M,$I82)))","v":{"$error":"#DIV/0!"}},{"$f":"(SUMIF(集計!$M:$M,$I82,集計!F:F)/(COUNTIF(集計!$M:$M,$I82)))","v":{"$error":"#DIV/0!"}},{"$f":"(SUMIF(集計!$M:$M,$I82,集計!G:G)/(COUNTIF(集計!$M:$M,$I82)))","v":{"$error":"#DIV/0!"}}]
[null,null,null,null,null,null,null,null,null,{"$f":"SUMIF(集計!$M:$M,$I82,集計!H:H)/(COUNTIF(集計!$M:$M,$I82))","v":{"$error":"#DIV/0!"}},{"$f":"SUMIF(集計!$M:$M,$I82,集計!I:I)/(COUNTIF(集計!$M:$M,$I82))","v":{"$error":"#DIV/0!"}},{"$f":"SUMIF(集計!$M:$M,$I82,集計!J:J)/(COUNTIF(集計!$M:$M,$I82))","v":{"$error":"#DIV/0!"}},{"$f":"SUMIF(集計!$M:$M,$I82,集計!K:K)/(COUNTIF(集計!$M:$M,$I82))","v":{"$error":"#DIV/0!"}},{"$f":"SUMIF(集計!$M:$M,$I82,集計!L:L)/(COUNTIF(集計!$M:$M,$I82))","v":{"$error":"#DIV/0!"}}]

{"sheet":"比較","index":2,"n_rows":30,"n_cols":14,"rows_kept":30,"cut":false,"hidden":false,"merged":[[21,9,21,13],[0,9,0,13]]}
[null,null,null,null,null,null,null,null,null,"Ⅰ身体機能計測"]
[null,null,null,null,null,null,null,null,"年代平均","①歩行能力・筋力","②敏捷性","③動的バランス","④静的バランス\n（閉眼）","⑤静的バランス\n（開眼）"]
[null,null,null,null,null,null,null,null,10,{"$f":"(SUMIF(集計!$M:$M,$I3,集計!C:C)/(COUNTIF(集計!$M:$M,$I3)))","v":{"$error":"#DIV/0!"}},{"$f":"(SUMIF(集計!$M:$M,$I3,集計!D:D)/(COUNTIF(集計!$M:$M,$I3)))","v":{"$error":"#DIV/0!"}},{"$f":"(SUMIF(集計!$M:$M,$I3,集計!E:E)/(COUNTIF(集計!$M:$M,$I3)))","v":{"$error":"#DIV/0!"}},{"$f":"(SUMIF(集計!$M:$M,$I3,集計!F:F)/(COUNTIF(集計!$M:$M,$I3)))","v":{"$error":"#DIV/0!"}},{"$f":"(SUMIF(集計!$M:$M,$I3,集計!G:G)/(COUNTIF(集計!$M:$M,$I3)))","v":{"$error":"#DIV/0!"}}]
[null,null,null,null,null,null,null,null,20,{"$f":"(SUMIF(集計!$M:$M,$I4,集計!C:C)/(COUNTIF(集計!$M:$M,$I4)))","v":{"$error":"#DIV/0!"}},{"$f":"(SUMIF(集計!$M:$M,$I4,集計!D:D)/(COUNTIF(集計!$M:$M,$I4)))","v":{"$error":"#DIV/0!"}},{"$f":"(SUMIF(集計!$M:$M,$I4,集計!E:E)/(COUNTIF(集計!$M:$M,$I4)))","v":{"$error":"#DIV/0!"}},{"$f":"(SUMIF(集計!$M:$M,$I4,集計!F:F)/(COUNTIF(集計!$M:$M,$I4)))","v":{"$error":"#DIV/0!"}},{"$f":"(SUMIF(集計!$M:$M,$I4,集計!G:G)/(COUNTIF(集計!$M:$M,$I4)))","v":{"$error":"#DIV/0!"}}]
[null,null,null,null,null,null,null,null,30,{"$f":"(SUMIF(集計!$M:$M,$I5,集計!C:C)/(COUNTIF(集計!$M:$M,$I5)))","v":{"$error":"#DIV/0!"}},{"$f":"(SUMIF(集計!$M:$M,$I5,集計!D:D)/(COUNTIF(集計!$M:$M,$I5)))","v":{"$error":"#DIV/0!"}},{"$f":"(SUMIF(集計!$M:$M,$I5,集計!E:E)/(COUNTIF(集計!$M:$M,$I5)))","v":{"$error":"#DIV/0!"}},{"$f":"(SUMIF(集計!$M:$M,$I5,集計!F:F)/(COUNTIF(集計!$M:$M,$I5)))","v":{"$error":"#DIV/0!"}},{"$f":"(SUMIF(集計!$M:$M,$I5,集計!G:G)/(COUNTIF(集計!$M:$M,$I5)))","v":{"$error":"#DIV/0!"}}]
[null,null,null,null,null,null,null,null,40,{"$f":"(SUMIF(集計!$M:$M,$I6,集計!C:C)/(COUNTIF(集計!$M:$M,$I6)))","v":{"$error":"#DIV/0!"}},{"$f":"(SUMIF(集計!$M:$M,$I6,集計!D:D)/(COUNTIF(集計!$M:$M,$I6)))","v":{"$error":"#DIV/0!"}},{"$f":"(SUMIF(集計!$M:$M,$I6,集計!E:E)/(COUNTIF(集計!$M:$M,$I6)))","v":{"$error":"#DIV/0!"}},{"$f":"(SUMIF(集計!$M:$M,$I6,集計!F:F)/(COUNTIF(集計!$M:$M,$I6)))","v":{"$error":"#DIV/0!"}},{"$f":"(SUMIF(集計!$M:$M,$I6,集計!G:G)/(COUNTIF(集計!$M:$M,$I6)))","v":{"$error":"#DIV/0!"}}]
[null,null,null,null,null,null,null,null,50,{"$f":"(SUMIF(集計!$M:$M,$I7,集計!C:C)/(COUNTIF(集計!$M:$M,$I7)))","v":{"$error":"#DIV/0!"}},{"$f":"(SUMIF(集計!$M:$M,$I7,集計!D:D)/(COUNTIF(集計!$M:$M,$I7)))","v":{"$error":"#DIV/0!"}},{"$f":"(SUMIF(集計!$M:$M,$I7,集計!E:E)/(COUNTIF(集計!$M:$M,$I7)))","v":{"$error":"#DIV/0!"}},{"$f":"(SUMIF(集計!$M:$M,$I7,集計!F:F)/(COUNTIF(集計!$M:$M,$I7)))","v":{"$error":"#DIV/0!"}},{"$f":"(SUMIF(集計!$M:$M,$I7,集計!G:G)/(COUNTIF(集計!$M:$M,$I7)))","v":{"$error":"#DIV/0!"}}]
[null,null,null,null,null,null,null,null,60,{"$f":"(SUMIF(集計!$M:$M,$I8,集計!C:C)/(COUNTIF(集計!$M:$M,$I8)))","v":{"$error":"#DIV/0!"}},{"$f":"(SUMIF(集計!$M:$M,$I8,集計!D:D)/(COUNTIF(集計!$M:$M,$I8)))","v":{"$error":"#DIV/0!"}},{"$f":"(SUMIF(集計!$M:$M,$I8,集計!E:E)/(COUNTIF(集計!$M:$M,$I8)))","v":{"$error":"#DIV/0!"}},{"$f":"(SUMIF(集計!$M:$M,$I8,集計!F:F)/(COUNTIF(集計!$M:$M,$I8)))","v":{"$error":"#DIV/0!"}},{"$f":"(SUMIF(集計!$M:$M,$I8,集計!G:G)/(COUNTIF(集計!$M:$M,$I8)))","v":{"$error":"#DIV/0!"}}]
[null,null,null,null,null,null,null,null,70,{"$f":"(SUMIF(集計!$M:$M,$I9,集計!C:C)/(COUNTIF(集計!$M:$M,$I9)))","v":{"$error":"#DIV/0!"}},{"$f":"(SUMIF(集計!$M:$M,$I9,集計!D:D)/(COUNTIF(集計!$M:$M,$I9)))","v":{"$error":"#DIV/0!"}},{"$f":"(SUMIF(集計!$M:$M,$I9,集計!E:E)/(COUNTIF(集計!$M:$M,$I9)))","v":{"$error":"#DIV/0!"}},{"$f":"(SUMIF(集計!$M:$M,$I9,集計!F:F)/(COUNTIF(集計!$M:$M,$I9)))","v":{"$error":"#DIV/0!"}},{"$f":"(SUMIF(集計!$M:$M,$I9,集計!G:G)/(COUNTIF(集計!$M:$M,$I9)))","v":{"$error":"#DIV/0!"}}]
[]
[]
[]
[]
[]
[]
[]
[]
[]
[]
[]
[]
[null,null,null,null,null,null,null,null,null,"Ⅱ身体機能に対する意識"]
[null,null,null,null,null,null,null,null,"年代平均","①歩行能力・筋力","②敏捷性","③動的バランス","④静的バランス\n（閉眼）","⑤静的バランス\n（開眼）"]
[null,null,null,null,null,null,null,null,10,{"$f":"SUMIF(集計!$M:$M,$I24,集計!H:H)/(COUNTIF(集計!$M:$M,$I24))","v":{"$error":"#DIV/0!"}},{"$f":"SUMIF(集計!$M:$M,$I24,集計!I:I)/(COUNTIF(集計!$M:$M,$I24))","v":{"$error":"#DIV/0!"}},{"$f":"SUMIF(集計!$M:$M,$I24,集計!J:J)/(COUNTIF(集計!$M:$M,$I24))","v":{"$error":"#DIV/0!"}},{"$f":"SUMIF(集計!$M:$M,$I24,集計!K:K)/(COUNTIF(集計!$M:$M,$I24))","v":{"$error":"#DIV/0!"}},{"$f":"SUMIF(集計!$M:$M,$I24,集計!L:L)/(COUNTIF(集計!$M:$M,$I24))","v":{"$error":"#DIV/0!"}}]
[null,null,null,null,null,null,null,null,20,{"$f":"SUMIF(集計!$M:$M,$I25,集計!H:H)/(COUNTIF(集計!$M:$M,$I25))","v":{"$error":"#DIV/0!"}},{"$f":"SUMIF(集計!$M:$M,$I25,集計!I:I)/(COUNTIF(集計!$M:$M,$I25))","v":{"$error":"#DIV/0!"}},{"$f":"SUMIF(集計!$M:$M,$I25,集計!J:J)/(COUNTIF(集計!$M:$M,$I25))","v":{"$error":"#DIV/0!"}},{"$f":"SUMIF(集計!$M:$M,$I25,集計!K:K)/(COUNTIF(集計!$M:$M,$I25))","v":{"$error":"#DIV/0!"}},{"$f":"SUMIF(集計!$M:$M,$I25,集計!L:L)/(COUNTIF(集計!$M:$M,$I25))","v":{"$error":"#DIV/0!"}}]
[null,null,null,null,null,null,null,null,30,{"$f":"SUMIF(集計!$M:$M,$I26,集計!H:H)/(COUNTIF(集計!$M:$M,$I26))","v":{"$error":"#DIV/0!"}},{"$f":"SUMIF(集計!$M:$M,$I26,集計!I:I)/(COUNTIF(集計!$M:$M,$I26))","v":{"$error":"#DIV/0!"}},{"$f":"SUMIF(集計!$M:$M,$I26,集計!J:J)/(COUNTIF(集計!$M:$M,$I26))","v":{"$error":"#DIV/0!"}},{"$f":"SUMIF(集計!$M:$M,$I26,集計!K:K)/(COUNTIF(集計!$M:$M,$I26))","v":{"$error":"#DIV/0!"}},{"$f":"SUMIF(集計!$M:$M,$I26,集計!L:L)/(COUNTIF(集計!$M:$M,$I26))","v":{"$error":"#DIV/0!"}}]
[null,null,null,null,null,null,null,null,40,{"$f":"SUMIF(集計!$M:$M,$I27,集計!H:H)/(COUNTIF(集計!$M:$M,$I27))","v":{"$error":"#DIV/0!"}},{"$f":"SUMIF(集計!$M:$M,$I27,集計!I:I)/(COUNTIF(集計!$M:$M,$I27))","v":{"$error":"#DIV/0!"}},{"$f":"SUMIF(集計!$M:$M,$I27,集計!J:J)/(COUNTIF(集計!$M:$M,$I27))","v":{"$error":"#DIV/0!"}},{"$f":"SUMIF(集計!$M:$M,$I27,集計!K:K)/(COUNTIF(集計!$M:$M,$I27))","v":{"$error":"#DIV/0!"}},{"$f":"SUMIF(集計!$M:$M,$I27,集計!L:L)/(COUNTIF(集計!$M:$M,$I27))","v":{"$error":"#DIV/0!"}}]
[null,null,null,null,null,null,null,null,50,{"$f":"SUMIF(集計!$M:$M,$I28,集計!H:H)/(COUNTIF(集計!$M:$M,$I28))","v":{"$error":"#DIV/0!"}},{"$f":"SUMIF(集計!$M:$M,$I28,集計!I:I)/(COUNTIF(集計!$M:$M,$I28))","v":{"$error":"#DIV/0!"}},{"$f":"SUMIF(集計!$M:$M,$I28,集計!J:J)/(COUNTIF(集計!$M:$M,$I28))","v":{"$error":"#DIV/0!"}},{"$f":"SUMIF(集計!$M:$M,$I28,集計!K:K)/(COUNTIF(集計!$M:$M,$I28))","v":{"$error":"#DIV/0!"}},{"$f":"SUMIF(集計!$M:$M,$I28,集計!L:L)/(COUNTIF(集計!$M:$M,$I28))","v":{"$error":"#DIV/0!"}}]
[null,null,null,null,null,null,null,null,60,{"$f":"SUMIF(集計!$M:$M,$I29,集計!H:H)/(COUNTIF(集計!$M:$M,$I29))","v":{"$error":"#DIV/0!"}},{"$f":"SUMIF(集計!$M:$M,$I29,集計!I:I)/(COUNTIF(集計!$M:$M,$I29))","v":{"$error":"#DIV/0!"}},{"$f":"SUMIF(集計!$M:$M,$I29,集計!J:J)/(COUNTIF(集計!$M:$M,$I29))","v":{"$error":"#DIV/0!"}},{"$f":"SUMIF(集計!$M:$M,$I29,集計!K:K)/(COUNTIF(集計!$M:$M,$I29))","v":{"$error":"#DIV/0!"}},{"$f":"SUMIF(集計!$M:$M,$I29,集計!L:L)/(COUNTIF(集計!$M:$M,$I29))","v":{"$error":"#DIV/0!"}}]
[null,null,null,null,null,null,null,null,70,{"$f":"SUMIF(集計!$M:$M,$I30,集計!H:H)/(COUNTIF(集計!$M:$M,$I30))","v":{"$error":"#DIV/0!"}},{"$f":"SUMIF(集計!$M:$M,$I30,集計!I:I)/(COUNTIF(集計!$M:$M,$I30))","v":{"$error":"#DIV/0!"}},{"$f":"SUMIF(集計!$M:$M,$I30,集計!J:J)/(COUNTIF(集計!$M:$M,$I30))","v":{"$error":"#DIV/0!"}},{"$f":"SUMIF(集計!$M:$M,$I30,集計!K:K)/(COUNTIF(集計!$M:$M,$I30))","v":{"$error":"#DIV/0!"}},{"$f":"SUMIF(集計!$M:$M,$I30,集計!L:L)/(COUNTIF(集計!$M:$M,$I30))","v":{"$error":"#DIV/0!"}}]

{"sheet":"解説","index":3,"n_rows":21,"n_cols":2,"rows_kept":21,"cut":false,"hidden":false,"merged":[[20,0,20,1],[0,0,0,1],[4,0,4,1],[8,0,8,1],[12,0,12,1],[16,0,16,1]]}
[]
[]
["パターン１","身体機能計測結果　＞　質問票回答結果"]
[]
["　あなたの身体機能（青線）は、自己認識（赤線）よりも高い状態にあります。このことから、比較的自分の体力について慎重に評価する傾向にあるといえます。生活習慣や加齢により急激に能力が下がる項目もありますので、今後も過信することなく、体力の維持向上に努めましょう。\n　ー方、太線が点線より大きくても全体的に枠が小さい場合 （特に２以下） は、すでに身体機能面で転倒等のリスクが高いといえます。筋力やバランス能力の向上、整理整頓や転倒・転落しやすい箇所の削減に努めててください。\n　また、職場の整理整頓がなされていない場合などには転倒等リスクが高まることがありますので注意しましょう。 "]
[]
["パターン２","身体機能計測結果　＜　質問票回答結果"]
[]
["　あなたの身体機能（青線）は,自己認識（赤線）よりも低い状態にあります。このことから、実際よりも自分の体力を高く評価している傾向にあり、自分で考えている以上にからだが反応していない場合があります。\n　体力の維持向上を図り、自己認識まで体力を向上させる一方、体力等の衰えによる転倒等のリスクがあることを認識してください。日頃から、急な動作を選け、足元や周辺の安全を確認しながら行動するようにしましょう。\n　また、枠の大きさが異なるほど、身体機能と自己認識の差が大きいことを示しており、さらに、太線が小さい場合（特に２以下）はすでに身体機能面で転倒等のリスクが高いことが考えられます。 筋力やバランス能力等の向上に努めてください。 "]
[]
["パターン３","身体機能計測結果　≒　質問票回答結果（枠が大きい）"]
[]
["　あなたの身体機能（青線）とそれに対する自己認識（赤線）は同じくらいで、どちらも高い傾向にあります。このことから、転倒等リスクから見た身体機能は現時点で間題はなく、同様に自分でもそれを認識しているといえます。 \n　現在は良い状態にありますが、加齢や生活習慣の変化により身体能力が急激に低下し、転倒等リスクが高まる場合もありますので、日頃から、転倒等に対するリスクを認識するとともに、引き続き体力の維持向上に努めてください。 "]
[]
["パターン４","身体機能計測結果　≒　質問票回答結果（枠が小さい）"]
[]
["　あなたの身体機能（青線）とそれに対する自己認識（赤線）は同じくらいで、身体機能と認識の差は小さいですが、身体機能・認識とも低い傾向にあります（主に２以下）。\n　このことから、転倒等リスクからみて身体機能に不安を持っており、そのことを自分でも認識しているといえます。日頃から、体力の向上等により身体面での転倒等のリスクを減らし、全体的に枠が大きくなるように努めてください。\nまた、すぐに転倒リスクを減らすため、職場の整理整頓や転倒・転落しやすい箇所の改善等を行ってください。                                                          "]
[]
["パターン５","項目により逆転している"]
[]
["　あなたは、計測項目によって、身体機能（青線）の方が高い場合と自己認識（赤線）の方が高い場合が混在しています。\n　このことから、それぞれの体力要素について、実際より高く自己評価している場合と慎重に評価している場合があるといえます。\n　転倒等リスクからみた場合、特に自己認識に比べ、身体機能が低い項目（太線が小さい項目）が問題となります。身体機能の向上により太線の方が大きくなるよう努めてください。\n　また、身体機能と認識にばらつきがあるため、思わぬところで転倒や転落する可能性がありますので、転倒・転落しやすい箇所の改善等を行ってください。 "]